[Event "Titled Tuesday Blitz September 13 Early 2022"]
[White "Bykhovsky, Anatoly"]
[Black "Le, Tuan Minh"]
[WhiteFideId "2806991"]
[BlackFideId "12401153"]
[WhiteElo "2786"]
[BlackElo "3064"]
[Result "0-1"]
[Round "03"]
[TimeControl "180+1"]
[Date "2022.09.13"]
[WhiteClock "0:00:21"]
[BlackClock "0:00:13"]

1. d4 {[%clk 0:03:00]}  d5 {[%clk 0:03:00]} 2. Nf3 {[%clk 0:03:01]}  Nf6 {[%clk 0:03:00]} 3. c4 {[%clk 0:03:02]}  c6 {[%clk 0:03:00]} 4. Nc3 {[%clk 0:03:02]}  a6 {[%clk 0:03:00]} 5. c5 {[%clk 0:03:02]}  Nbd7 {[%clk 0:03:00]} 6. Bf4 {[%clk 0:03:02]}  Nh5 {[%clk 0:03:00]} 7. e3 {[%clk 0:03:02]}  g6 {[%clk 0:02:56]} 8. Be2 {[%clk 0:03:00]}  Bg7 {[%clk 0:02:57]} 9. h3 {[%clk 0:02:59]}  Nxf4 {[%clk 0:02:56]} 10. exf4 {[%clk 0:03:00]}  O-O {[%clk 0:02:56]} 11. Rc1 {[%clk 0:02:52]}  Re8 {[%clk 0:02:50]} 12. h4 {[%clk 0:02:42]}  f6 {[%clk 0:02:43]} 13. h5 {[%clk 0:02:15]}  e5 {[%clk 0:02:43]} 14. hxg6 {[%clk 0:02:16]}  hxg6 {[%clk 0:02:44]} 15. dxe5 {[%clk 0:02:11]}  fxe5 {[%clk 0:02:43]} 16. Nxd5 {[%clk 0:02:12]}  exf4 {[%clk 0:01:27]} 17. Nxf4 {[%clk 0:02:06]}  Qf6 {[%clk 0:01:23]} 18. g3 {[%clk 0:01:40]}  g5 {[%clk 0:00:59]} 19. Qb3+ {[%clk 0:01:38]}  Kf8 {[%clk 0:01:00]} 20. Nh5 {[%clk 0:01:15]}  Qxb2 {[%clk 0:00:58]} 21. Qxb2 {[%clk 0:01:12]}  Bxb2 {[%clk 0:00:59]} 22. Rc2 {[%clk 0:01:12]}  g4 {[%clk 0:00:31]} 23. Ng5 {[%clk 0:00:41]}  Ba3 {[%clk 0:00:30]} 24. Nf4 {[%clk 0:00:39]}  Nxc5 {[%clk 0:00:29]} 25. Kf1 {[%clk 0:00:35]}  Bf5 {[%clk 0:00:26]} 26. Rc3 {[%clk 0:00:35]}  Bb4 {[%clk 0:00:25]} 27. Rc4 {[%clk 0:00:35]}  a5 {[%clk 0:00:25]} 28. Rh6 {[%clk 0:00:26]}  Kg7 {[%clk 0:00:23]} 29. Rh4 {[%clk 0:00:24]}  Rxe2 {[%clk 0:00:19]} 30. Nxe2 {[%clk 0:00:22]}  Re8 {[%clk 0:00:13]} 31. Nd4 {[%clk 0:00:21]}  Bd3+ {[%clk 0:00:13]} 0-1


[Site "https://www.chess.com"]

[Event "Titled Tuesday Blitz September 13 Early 2022"]
[White "Ceres, Dragos"]
[Black "Dubov, Daniil"]
[WhiteFideId "13905864"]
[BlackFideId "24126055"]
[WhiteElo "2772"]
[BlackElo "3029"]
[Result "1/2-1/2"]
[Round "03"]
[TimeControl "180+1"]
[Date "2022.09.13"]
[WhiteClock "0:00:42"]
[BlackClock "0:00:07"]

1. e4 {[%clk 0:03:00]}  c5 {[%clk 0:02:59]} 2. c3 {[%clk 0:03:00]}  Nc6 {[%clk 0:02:52]} 3. Nf3 {[%clk 0:02:59]}  d5 {[%clk 0:02:50]} 4. exd5 {[%clk 0:02:59]}  Qxd5 {[%clk 0:02:51]} 5. d4 {[%clk 0:03:00]}  cxd4 {[%clk 0:02:51]} 6. cxd4 {[%clk 0:03:00]}  e5 {[%clk 0:02:52]} 7. Nc3 {[%clk 0:03:00]}  Bb4 {[%clk 0:02:53]} 8. Bd2 {[%clk 0:02:55]}  Bxc3 {[%clk 0:02:53]} 9. Bxc3 {[%clk 0:02:56]}  e4 {[%clk 0:02:54]} 10. Ne5 {[%clk 0:02:54]}  Nxe5 {[%clk 0:02:54]} 11. dxe5 {[%clk 0:02:55]}  Ne7 {[%clk 0:02:55]} 12. Be2 {[%clk 0:02:48]}  O-O {[%clk 0:02:53]} 13. O-O {[%clk 0:02:47]}  Re8 {[%clk 0:02:53]} 14. Re1 {[%clk 0:02:41]}  Be6 {[%clk 0:02:45]} 15. Bg4 {[%clk 0:02:26]}  Rad8 {[%clk 0:02:34]} 16. Qxd5 {[%clk 0:02:18]}  Nxd5 {[%clk 0:02:29]} 17. Bxe6 {[%clk 0:02:16]}  Rxe6 {[%clk 0:02:29]} 18. Rxe4 {[%clk 0:02:16]}  Nxc3 {[%clk 0:02:29]} 19. bxc3 {[%clk 0:02:17]}  g5 {[%clk 0:02:25]} 20. g3 {[%clk 0:02:13]}  Rd2 {[%clk 0:02:24]} 21. a4 {[%clk 0:02:10]}  Rc2 {[%clk 0:02:05]} 22. Rb1 {[%clk 0:01:32]}  b6 {[%clk 0:02:03]} 23. a5 {[%clk 0:01:32]}  Rxc3 {[%clk 0:01:45]} 24. axb6 {[%clk 0:01:32]}  axb6 {[%clk 0:01:45]} 25. Reb4 {[%clk 0:01:31]}  Rcc6 {[%clk 0:01:39]} 26. Rb5 {[%clk 0:01:31]}  Kg7 {[%clk 0:01:36]} 27. Kg2 {[%clk 0:01:30]}  Kg6 {[%clk 0:01:35]} 28. g4 {[%clk 0:01:30]}  h5 {[%clk 0:01:31]} 29. h3 {[%clk 0:01:31]}  h4 {[%clk 0:01:31]} 30. R1b2 {[%clk 0:01:30]}  Kg7 {[%clk 0:01:31]} 31. R2b3 {[%clk 0:01:30]}  Kf8 {[%clk 0:01:31]} 32. Rf3 {[%clk 0:01:26]}  Rc5 {[%clk 0:01:27]} 33. Rfb3 {[%clk 0:01:17]}  Rxb5 {[%clk 0:01:25]} 34. Rxb5 {[%clk 0:01:18]}  Ke7 {[%clk 0:01:25]} 35. Kf3 {[%clk 0:01:18]}  Kd7 {[%clk 0:01:23]} 36. Ke4 {[%clk 0:01:10]}  Kc6 {[%clk 0:00:49]} 37. Rb1 {[%clk 0:01:07]}  f6 {[%clk 0:00:48]} 38. Kf5 {[%clk 0:01:08]}  Rxe5+ {[%clk 0:00:48]} 39. Kxf6 {[%clk 0:01:08]}  Rc5 {[%clk 0:00:42]} 40. f4 {[%clk 0:01:08]}  gxf4 {[%clk 0:00:41]} 41. g5 {[%clk 0:01:09]}  Rc3 {[%clk 0:00:20]} 42. g6 {[%clk 0:01:06]}  Rxh3 {[%clk 0:00:18]} 43. Rg1 {[%clk 0:01:05]}  Rd3 {[%clk 0:00:03]} 44. g7 {[%clk 0:01:05]}  Rd8 {[%clk 0:00:02]} 45. g8=Q {[%clk 0:01:05]}  Rxg8 {[%clk 0:00:02]} 46. Rxg8 {[%clk 0:01:06]}  Kd5 {[%clk 0:00:02]} 47. Kf5 {[%clk 0:01:03]}  f3 {[%clk 0:00:03]} 48. Rg1 {[%clk 0:01:01]}  b5 {[%clk 0:00:03]} 49. Kf4 {[%clk 0:00:54]}  f2 {[%clk 0:00:03]} 50. Rf1 {[%clk 0:00:54]}  Kd4 {[%clk 0:00:04]} 51. Rxf2 {[%clk 0:00:50]}  b4 {[%clk 0:00:04]} 52. Rd2+ {[%clk 0:00:48]}  Kc3 {[%clk 0:00:04]} 53. Ke3 {[%clk 0:00:47]}  b3 {[%clk 0:00:04]} 54. Rd8 {[%clk 0:00:41]}  b2 {[%clk 0:00:05]} 55. Rc8+ {[%clk 0:00:40]}  Kb3 {[%clk 0:00:05]} 56. Rb8+ {[%clk 0:00:40]}  Kc2 {[%clk 0:00:05]} 57. Rc8+ {[%clk 0:00:41]}  Kb3 {[%clk 0:00:06]} 58. Rb8+ {[%clk 0:00:41]}  Kc2 {[%clk 0:00:06]} 59. Rc8+ {[%clk 0:00:42]}  Kb3 {[%clk 0:00:07]} 1/2-1/2


[Site "https://www.chess.com"]

[Event "Titled Tuesday Blitz September 13 Early 2022"]
[White "D`Arruda, Ricardo D."]
[Black "Beerdsen, Thomas"]
[WhiteFideId "100692"]
[BlackFideId "1030108"]
[WhiteElo "2480"]
[BlackElo "2567"]
[Result "0-1"]
[Round "03"]
[TimeControl "180+1"]
[Date "2022.09.13"]
[WhiteClock "0:00:04"]
[BlackClock "0:00:14"]

1. d4 {[%clk 0:02:59]}  d5 {[%clk 0:02:57]} 2. Nf3 {[%clk 0:02:59]}  Nc6 {[%clk 0:02:58]} 3. c4 {[%clk 0:02:58]}  Bg4 {[%clk 0:02:58]} 4. e3 {[%clk 0:02:58]}  Nf6 {[%clk 0:02:57]} 5. Nc3 {[%clk 0:02:56]}  e6 {[%clk 0:02:57]} 6. Be2 {[%clk 0:02:55]}  Bb4 {[%clk 0:02:57]} 7. O-O {[%clk 0:02:54]}  O-O {[%clk 0:02:54]} 8. Qa4 {[%clk 0:02:52]}  dxc4 {[%clk 0:02:51]} 9. Bxc4 {[%clk 0:02:45]}  Bxf3 {[%clk 0:02:49]} 10. gxf3 {[%clk 0:02:44]}  Nh5 {[%clk 0:02:36]} 11. f4 {[%clk 0:02:39]}  Qh4 {[%clk 0:02:32]} 12. Be2 {[%clk 0:02:39]}  Nf6 {[%clk 0:02:18]} 13. Qd1 {[%clk 0:02:35]}  Rad8 {[%clk 0:02:14]} 14. Bf3 {[%clk 0:02:34]}  e5 {[%clk 0:02:14]} 15. fxe5 {[%clk 0:02:32]}  Nxe5 {[%clk 0:02:15]} 16. Bg2 {[%clk 0:02:32]}  Ng6 {[%clk 0:01:59]} 17. Qf3 {[%clk 0:02:27]}  Bd6 {[%clk 0:01:48]} 18. h3 {[%clk 0:02:24]}  c5 {[%clk 0:01:43]} 19. Ne4 {[%clk 0:02:10]}  Nxe4 {[%clk 0:01:40]} 20. Qxe4 {[%clk 0:02:10]}  Qf6 {[%clk 0:01:33]} 21. Qxb7 {[%clk 0:02:03]}  cxd4 {[%clk 0:01:31]} 22. exd4 {[%clk 0:02:04]}  Nf4 {[%clk 0:01:31]} 23. Bxf4 {[%clk 0:01:51]}  Qxf4 {[%clk 0:01:32]} 24. Rfd1 {[%clk 0:01:50]}  Rb8 {[%clk 0:01:29]} 25. Qe4 {[%clk 0:01:50]}  Qh2+ {[%clk 0:01:29]} 26. Kf1 {[%clk 0:01:49]}  Rxb2 {[%clk 0:01:30]} 27. Rdb1 {[%clk 0:01:38]}  Rd2 {[%clk 0:01:16]} 28. Rd1 {[%clk 0:01:37]}  Rxd1+ {[%clk 0:01:15]} 29. Rxd1 {[%clk 0:01:38]}  g6 {[%clk 0:01:11]} 30. Rb1 {[%clk 0:01:36]}  Bc7 {[%clk 0:01:08]} 31. Rb7 {[%clk 0:01:27]}  Bb6 {[%clk 0:01:08]} 32. a4 {[%clk 0:01:05]}  Qd6 {[%clk 0:00:56]} 33. Qd5 {[%clk 0:00:58]}  Qf6 {[%clk 0:00:48]} 34. Rd7 {[%clk 0:00:48]}  Rc8 {[%clk 0:00:39]} 35. Bf3 {[%clk 0:00:36]}  Bxd4 {[%clk 0:00:34]} 36. Qb7 {[%clk 0:00:14]}  Rc1+ {[%clk 0:00:30]} 37. Ke2 {[%clk 0:00:13]}  Qe6+ {[%clk 0:00:25]} 38. Kd3 {[%clk 0:00:10]}  Bf6 {[%clk 0:00:18]} 39. Bd5 {[%clk 0:00:06]}  Qxh3+ {[%clk 0:00:12]} 40. f3 {[%clk 0:00:06]}  Qf1+ {[%clk 0:00:13]} 41. Ke4 {[%clk 0:00:04]}  Qe2+ {[%clk 0:00:12]} 42. Kf4 {[%clk 0:00:04]}  Qe5+ {[%clk 0:00:13]} 43. Kg4 {[%clk 0:00:04]}  Rg1+ {[%clk 0:00:13]} 44. Kh3 {[%clk 0:00:04]}  Qh5# {[%clk 0:00:14]} 0-1


[Site "https://www.chess.com"]

[Event "Titled Tuesday Blitz September 13 Early 2022"]
[White "Decuigniere, Tom"]
[Black "Livaic, Leon"]
[WhiteFideId "26093820"]
[BlackFideId "14531534"]
[WhiteElo "2041"]
[BlackElo "2540"]
[Result "0-1"]
[Round "03"]
[TimeControl "180+1"]
[Date "2022.09.13"]
[WhiteClock "0:00:02"]
[BlackClock "0:01:32"]

1. d4 {[%clk 0:03:00]}  e6 {[%clk 0:02:59]} 2. c4 {[%clk 0:03:01]}  d5 {[%clk 0:02:57]} 3. Nc3 {[%clk 0:03:01]}  Nf6 {[%clk 0:02:57]} 4. cxd5 {[%clk 0:03:01]}  exd5 {[%clk 0:02:57]} 5. Bg5 {[%clk 0:03:01]}  Be7 {[%clk 0:02:57]} 6. e3 {[%clk 0:03:02]}  O-O {[%clk 0:02:57]} 7. Bd3 {[%clk 0:03:01]}  Re8 {[%clk 0:02:58]} 8. Qc2 {[%clk 0:02:58]}  c5 {[%clk 0:02:58]} 9. Nf3 {[%clk 0:02:31]}  h6 {[%clk 0:02:50]} 10. Bf4 {[%clk 0:02:19]}  c4 {[%clk 0:02:48]} 11. Bf5 {[%clk 0:02:19]}  Nc6 {[%clk 0:02:49]} 12. a3 {[%clk 0:02:12]}  Bd6 {[%clk 0:02:30]} 13. Bxd6 {[%clk 0:01:57]}  Qxd6 {[%clk 0:02:30]} 14. O-O {[%clk 0:01:58]}  Rb8 {[%clk 0:02:20]} 15. Rad1 {[%clk 0:01:40]}  b5 {[%clk 0:02:20]} 16. Bxc8 {[%clk 0:01:28]}  Rexc8 {[%clk 0:02:21]} 17. e4 {[%clk 0:01:28]}  Nxe4 {[%clk 0:02:14]} 18. Nxe4 {[%clk 0:01:28]}  Qg6 {[%clk 0:02:15]} 19. Rfe1 {[%clk 0:01:17]}  Re8 {[%clk 0:02:13]} 20. Nfd2 {[%clk 0:00:45]}  dxe4 {[%clk 0:02:05]} 21. Rxe4 {[%clk 0:00:42]}  Nxd4 {[%clk 0:02:00]} 22. Rxe8+ {[%clk 0:00:36]}  Rxe8 {[%clk 0:02:01]} 23. Qxg6 {[%clk 0:00:29]}  fxg6 {[%clk 0:02:02]} 24. Kf1 {[%clk 0:00:29]}  Nc6 {[%clk 0:01:59]} 25. Nb1 {[%clk 0:00:23]}  Rd8 {[%clk 0:01:56]} 26. Rxd8+ {[%clk 0:00:22]}  Nxd8 {[%clk 0:01:56]} 27. a4 {[%clk 0:00:20]}  bxa4 {[%clk 0:01:46]} 28. Na3 {[%clk 0:00:20]}  c3 {[%clk 0:01:47]} 29. bxc3 {[%clk 0:00:20]}  Kf7 {[%clk 0:01:47]} 30. Ke2 {[%clk 0:00:20]}  Ke6 {[%clk 0:01:48]} 31. Kd3 {[%clk 0:00:21]}  Kd5 {[%clk 0:01:48]} 32. c4+ {[%clk 0:00:20]}  Kc5 {[%clk 0:01:49]} 33. Kc3 {[%clk 0:00:21]}  Nf7 {[%clk 0:01:42]} 34. Nb5 {[%clk 0:00:17]}  Nd6 {[%clk 0:01:40]} 35. Nc7 {[%clk 0:00:12]}  Ne4+ {[%clk 0:01:35]} 36. Kb2 {[%clk 0:00:05]}  Kxc4 {[%clk 0:01:34]} 37. f3 {[%clk 0:00:04]}  Nc5 {[%clk 0:01:34]} 38. Ne8 {[%clk 0:00:03]}  Ne6 {[%clk 0:01:33]} 39. Ka3 {[%clk 0:00:03]}  Kd5 {[%clk 0:01:31]} 40. Kxa4 {[%clk 0:00:01]}  Kc6 {[%clk 0:01:31]} 41. g3 {[%clk 0:00:01]}  Kd7 {[%clk 0:01:32]} 42. Nxg7 {[%clk 0:00:02]}  Nxg7 {[%clk 0:01:32]} 0-1


[Site "https://www.chess.com"]

[Event "Titled Tuesday Blitz September 13 Early 2022"]
[White "Goryachkina, Aleksandra"]
[Black "Sarana, Alexey"]
[WhiteFideId "4147103"]
[BlackFideId "24133795"]
[WhiteElo "2426"]
[BlackElo "2689"]
[Result "0-1"]
[Round "03"]
[TimeControl "180+1"]
[Date "2022.09.13"]
[WhiteClock "0:00:03"]
[BlackClock "0:00:07"]

1. e4 {[%clk 0:02:59]}  c5 {[%clk 0:03:00]} 2. Nf3 {[%clk 0:03:00]}  d6 {[%clk 0:03:00]} 3. Bb5+ {[%clk 0:02:59]}  Bd7 {[%clk 0:03:00]} 4. Bxd7+ {[%clk 0:02:58]}  Nxd7 {[%clk 0:03:01]} 5. c3 {[%clk 0:02:51]}  Ngf6 {[%clk 0:02:59]} 6. Qe2 {[%clk 0:02:50]}  g6 {[%clk 0:02:36]} 7. O-O {[%clk 0:02:44]}  Bg7 {[%clk 0:02:37]} 8. d4 {[%clk 0:02:44]}  cxd4 {[%clk 0:02:34]} 9. cxd4 {[%clk 0:02:44]}  O-O {[%clk 0:02:30]} 10. Nc3 {[%clk 0:02:43]}  e6 {[%clk 0:02:29]} 11. h3 {[%clk 0:02:13]}  Qb6 {[%clk 0:02:25]} 12. Bf4 {[%clk 0:02:05]}  Rac8 {[%clk 0:02:24]} 13. Rac1 {[%clk 0:02:03]}  a6 {[%clk 0:01:55]} 14. Rfd1 {[%clk 0:01:43]}  Rfd8 {[%clk 0:01:53]} 15. e5 {[%clk 0:01:30]}  dxe5 {[%clk 0:01:33]} 16. dxe5 {[%clk 0:01:28]}  Nd5 {[%clk 0:01:33]} 17. Nxd5 {[%clk 0:01:21]}  exd5 {[%clk 0:01:34]} 18. Rxc8 {[%clk 0:01:18]}  Rxc8 {[%clk 0:01:35]} 19. Rxd5 {[%clk 0:01:16]}  Nf8 {[%clk 0:01:35]} 20. Rd6 {[%clk 0:01:02]}  Qb4 {[%clk 0:01:30]} 21. Qd2 {[%clk 0:00:55]}  Qe4 {[%clk 0:01:25]} 22. Be3 {[%clk 0:00:48]}  Ne6 {[%clk 0:01:14]} 23. Qd3 {[%clk 0:00:19]}  Qa4 {[%clk 0:01:12]} 24. a3 {[%clk 0:00:17]}  Bf8 {[%clk 0:00:59]} 25. Rd7 {[%clk 0:00:15]}  Qc6 {[%clk 0:00:51]} 26. Qd5 {[%clk 0:00:14]}  Qxd5 {[%clk 0:00:38]} 27. Rxd5 {[%clk 0:00:14]}  Rc2 {[%clk 0:00:39]} 28. Rd2 {[%clk 0:00:14]}  Rc1+ {[%clk 0:00:37]} 29. Kh2 {[%clk 0:00:14]}  Rb1 {[%clk 0:00:37]} 30. Nd4 {[%clk 0:00:13]}  Nc5 {[%clk 0:00:34]} 31. f4 {[%clk 0:00:08]}  Ne4 {[%clk 0:00:19]} 32. Rc2 {[%clk 0:00:08]}  Kg7 {[%clk 0:00:20]} 33. e6 {[%clk 0:00:07]}  Bd6 {[%clk 0:00:17]} 34. g3 {[%clk 0:00:04]}  Kf6 {[%clk 0:00:16]} 35. exf7 {[%clk 0:00:03]}  Kxf7 {[%clk 0:00:17]} 36. Nf3 {[%clk 0:00:03]}  Nf6 {[%clk 0:00:17]} 37. Bd4 {[%clk 0:00:03]}  Nd5 {[%clk 0:00:16]} 38. Ne5+ {[%clk 0:00:02]}  Ke6 {[%clk 0:00:16]} 39. Re2 {[%clk 0:00:02]}  Rd1 {[%clk 0:00:10]} 40. Bc3 {[%clk 0:00:02]}  Nxc3 {[%clk 0:00:08]} 41. bxc3 {[%clk 0:00:03]}  Kd5 {[%clk 0:00:08]} 42. Kg2 {[%clk 0:00:03]}  Bxa3 {[%clk 0:00:07]} 43. c4+ {[%clk 0:00:03]}  Kc5 {[%clk 0:00:07]} 44. Kf3 {[%clk 0:00:04]}  a5 {[%clk 0:00:07]} 45. Ke4 {[%clk 0:00:04]}  Bb4 {[%clk 0:00:07]} 46. Rc2 {[%clk 0:00:04]}  Re1+ {[%clk 0:00:06]} 47. Kf3 {[%clk 0:00:04]}  Kd4 {[%clk 0:00:05]} 48. c5 {[%clk 0:00:02]}  Re3+ {[%clk 0:00:05]} 49. Kf2 {[%clk 0:00:02]}  Rc3 {[%clk 0:00:05]} 50. Rxc3 {[%clk 0:00:03]}  Kxc3 {[%clk 0:00:05]} 51. c6 {[%clk 0:00:03]}  bxc6 {[%clk 0:00:06]} 52. Nxc6 {[%clk 0:00:03]}  a4 {[%clk 0:00:07]} 0-1


[Site "https://www.chess.com"]

[Event "Titled Tuesday Blitz September 13 Early 2022"]
[White "Harvey, Marcus R"]
[Black "Puranik, Abhimanyu"]
[WhiteFideId "400092"]
[BlackFideId "5061245"]
[WhiteElo "2485"]
[BlackElo "2520"]
[Result "1-0"]
[Round "03"]
[TimeControl "180+1"]
[Date "2022.09.13"]
[WhiteClock "0:00:27"]
[BlackClock "0:00:07"]

1. e4 {[%clk 0:03:00]}  e5 {[%clk 0:02:59]} 2. Nf3 {[%clk 0:02:59]}  Nc6 {[%clk 0:03:00]} 3. Bb5 {[%clk 0:02:57]}  a6 {[%clk 0:03:00]} 4. Ba4 {[%clk 0:02:57]}  Nf6 {[%clk 0:03:01]} 5. O-O {[%clk 0:02:57]}  b5 {[%clk 0:03:01]} 6. Bb3 {[%clk 0:02:58]}  Bb7 {[%clk 0:03:02]} 7. d3 {[%clk 0:02:57]}  Be7 {[%clk 0:03:01]} 8. a3 {[%clk 0:02:56]}  O-O {[%clk 0:03:01]} 9. Nc3 {[%clk 0:02:57]}  Nd4 {[%clk 0:03:01]} 10. Nxd4 {[%clk 0:02:56]}  exd4 {[%clk 0:03:02]} 11. Nd5 {[%clk 0:02:51]}  Nxd5 {[%clk 0:03:01]} 12. Bxd5 {[%clk 0:02:51]}  Bxd5 {[%clk 0:02:53]} 13. exd5 {[%clk 0:02:51]}  Bf6 {[%clk 0:02:49]} 14. Re1 {[%clk 0:02:49]}  Rc8 {[%clk 0:02:43]} 15. a4 {[%clk 0:02:47]}  c6 {[%clk 0:02:42]} 16. axb5 {[%clk 0:02:47]}  axb5 {[%clk 0:02:41]} 17. Qf3 {[%clk 0:02:19]}  Qb6 {[%clk 0:02:31]} 18. b4 {[%clk 0:01:31]}  cxd5 {[%clk 0:02:23]} 19. Qxd5 {[%clk 0:01:32]}  Qc6 {[%clk 0:02:23]} 20. Qxc6 {[%clk 0:01:27]}  Rxc6 {[%clk 0:02:05]} 21. Re2 {[%clk 0:01:27]}  Rfc8 {[%clk 0:02:02]} 22. Kf1 {[%clk 0:01:15]}  h5 {[%clk 0:01:51]} 23. Ra2 {[%clk 0:01:14]}  Re6 {[%clk 0:01:42]} 24. Bd2 {[%clk 0:01:06]}  h4 {[%clk 0:01:05]} 25. Ke1 {[%clk 0:01:02]}  Be5 {[%clk 0:01:01]} 26. h3 {[%clk 0:01:00]}  d6 {[%clk 0:00:40]} 27. Kd1 {[%clk 0:00:59]}  Rg6 {[%clk 0:00:36]} 28. f4 {[%clk 0:00:59]}  Bf6 {[%clk 0:00:37]} 29. Ra5 {[%clk 0:01:00]}  Rb8 {[%clk 0:00:36]} 30. f5 {[%clk 0:00:56]}  Rg5 {[%clk 0:00:17]} 31. Bxg5 {[%clk 0:00:56]}  Bxg5 {[%clk 0:00:17]} 32. Re4 {[%clk 0:00:53]}  Bf6 {[%clk 0:00:17]} 33. Ra6 {[%clk 0:00:50]}  Rd8 {[%clk 0:00:12]} 34. Kc1 {[%clk 0:00:43]}  d5 {[%clk 0:00:12]} 35. Re2 {[%clk 0:00:40]}  Kh7 {[%clk 0:00:11]} 36. Kb2 {[%clk 0:00:37]}  Rb8 {[%clk 0:00:10]} 37. Rd6 {[%clk 0:00:35]}  Kh6 {[%clk 0:00:09]} 38. Rxd5 {[%clk 0:00:35]}  Kg5 {[%clk 0:00:10]} 39. Re4 {[%clk 0:00:35]}  Rb7 {[%clk 0:00:09]} 40. Rg4+ {[%clk 0:00:35]}  Kh5 {[%clk 0:00:09]} 41. Rc5 {[%clk 0:00:28]}  Be7 {[%clk 0:00:07]} 42. Rc8 {[%clk 0:00:27]} 1-0


[Site "https://www.chess.com"]

[Event "Titled Tuesday Blitz September 13 Early 2022"]
[White "Kamsky, Gata"]
[Black "Vaibhav Jayant Raut"]
[WhiteFideId "2000024"]
[BlackFideId "5089034"]
[WhiteElo "2966"]
[BlackElo "2753"]
[Result "0-1"]
[Round "03"]
[TimeControl "180+1"]
[Date "2022.09.13"]
[WhiteClock "0:00:02"]
[BlackClock "0:00:05"]

1. d4 {[%clk 0:02:58]}  Nf6 {[%clk 0:02:59]} 2. Bf4 {[%clk 0:02:56]}  e6 {[%clk 0:02:55]} 3. e3 {[%clk 0:02:55]}  c5 {[%clk 0:02:56]} 4. c3 {[%clk 0:02:53]}  b6 {[%clk 0:02:55]} 5. Nf3 {[%clk 0:02:51]}  Bb7 {[%clk 0:02:55]} 6. Nbd2 {[%clk 0:02:45]}  Be7 {[%clk 0:02:55]} 7. h3 {[%clk 0:02:44]}  O-O {[%clk 0:02:55]} 8. Bd3 {[%clk 0:02:43]}  d5 {[%clk 0:02:50]} 9. Qb1 {[%clk 0:02:38]}  Ba6 {[%clk 0:02:46]} 10. Bxa6 {[%clk 0:02:36]}  Nxa6 {[%clk 0:02:46]} 11. a4 {[%clk 0:02:35]}  Nb8 {[%clk 0:02:44]} 12. Ne5 {[%clk 0:02:31]}  Nfd7 {[%clk 0:02:41]} 13. O-O {[%clk 0:02:15]}  Nxe5 {[%clk 0:02:40]} 14. dxe5 {[%clk 0:02:14]}  Nc6 {[%clk 0:02:37]} 15. Nf3 {[%clk 0:02:11]}  Qc8 {[%clk 0:02:30]} 16. Rd1 {[%clk 0:02:06]}  Rd8 {[%clk 0:02:28]} 17. h4 {[%clk 0:01:55]}  h6 {[%clk 0:02:25]} 18. h5 {[%clk 0:01:53]}  a6 {[%clk 0:02:19]} 19. Qd3 {[%clk 0:01:50]}  c4 {[%clk 0:02:12]} 20. Qe2 {[%clk 0:01:48]}  b5 {[%clk 0:02:11]} 21. e4 {[%clk 0:01:38]}  dxe4 {[%clk 0:02:01]} 22. Qxe4 {[%clk 0:01:37]}  Qc7 {[%clk 0:02:01]} 23. axb5 {[%clk 0:01:19]}  Rxd1+ {[%clk 0:01:55]} 24. Rxd1 {[%clk 0:01:18]}  axb5 {[%clk 0:01:56]} 25. g4 {[%clk 0:00:49]}  Rd8 {[%clk 0:01:39]} 26. Rxd8+ {[%clk 0:00:43]}  Bxd8 {[%clk 0:01:21]} 27. Nd4 {[%clk 0:00:41]}  Nxd4 {[%clk 0:01:15]} 28. Qxd4 {[%clk 0:00:41]}  Be7 {[%clk 0:01:08]} 29. Qe4 {[%clk 0:00:41]}  Qd8 {[%clk 0:01:05]} 30. Kg2 {[%clk 0:00:36]}  Qd1 {[%clk 0:01:05]} 31. Be3 {[%clk 0:00:30]}  Qe2 {[%clk 0:01:00]} 32. Qf3 {[%clk 0:00:19]}  Qd3 {[%clk 0:00:35]} 33. Qa8+ {[%clk 0:00:18]}  Kh7 {[%clk 0:00:35]} 34. Qb7 {[%clk 0:00:18]}  Bg5 {[%clk 0:00:17]} 35. Bxg5 {[%clk 0:00:16]}  hxg5 {[%clk 0:00:18]} 36. Qxf7 {[%clk 0:00:16]}  Qe4+ {[%clk 0:00:18]} 37. Qf3 {[%clk 0:00:14]}  Qxe5 {[%clk 0:00:18]} 38. Qe3 {[%clk 0:00:13]}  Qd5+ {[%clk 0:00:18]} 39. f3 {[%clk 0:00:13]}  Kh6 {[%clk 0:00:13]} 40. Qe4 {[%clk 0:00:12]}  Qxe4 {[%clk 0:00:09]} 41. fxe4 {[%clk 0:00:12]}  e5 {[%clk 0:00:07]} 42. Kf3 {[%clk 0:00:11]}  g6 {[%clk 0:00:07]} 43. hxg6 {[%clk 0:00:11]}  Kxg6 {[%clk 0:00:08]} 44. Ke3 {[%clk 0:00:11]}  Kf6 {[%clk 0:00:09]} 45. Kd2 {[%clk 0:00:10]}  Ke6 {[%clk 0:00:10]} 46. Kc2 {[%clk 0:00:09]}  Kd6 {[%clk 0:00:10]} 47. b4 {[%clk 0:00:02]}  cxb3+ {[%clk 0:00:04]} 48. Kxb3 {[%clk 0:00:02]}  Kc5 {[%clk 0:00:05]} 0-1


[Site "https://www.chess.com"]

[Event "Titled Tuesday Blitz September 13 Early 2022"]
[White "Kosteniuk, Alexandra"]
[Black "Pranav, V"]
[WhiteFideId "4128125"]
[BlackFideId "25060783"]
[WhiteElo "2469"]
[BlackElo "2390"]
[Result "1-0"]
[Round "03"]
[TimeControl "180+1"]
[Date "2022.09.13"]
[WhiteClock "0:00:16"]
[BlackClock "0:00:01"]

1. e4 {[%clk 0:03:00]}  c5 {[%clk 0:02:59]} 2. c3 {[%clk 0:02:59]}  g6 {[%clk 0:02:59]} 3. Nf3 {[%clk 0:02:58]}  Bg7 {[%clk 0:02:59]} 4. d4 {[%clk 0:02:59]}  cxd4 {[%clk 0:03:00]} 5. cxd4 {[%clk 0:02:59]}  d5 {[%clk 0:03:00]} 6. e5 {[%clk 0:03:00]}  Bg4 {[%clk 0:02:58]} 7. Bb5+ {[%clk 0:02:52]}  Nc6 {[%clk 0:02:56]} 8. Nbd2 {[%clk 0:02:50]}  e6 {[%clk 0:02:55]} 9. Bxc6+ {[%clk 0:02:49]}  bxc6 {[%clk 0:02:54]} 10. O-O {[%clk 0:02:49]}  Ne7 {[%clk 0:02:45]} 11. h3 {[%clk 0:02:50]}  Bf5 {[%clk 0:02:45]} 12. Qb3 {[%clk 0:02:43]}  h5 {[%clk 0:02:40]} 13. Re1 {[%clk 0:02:39]}  O-O {[%clk 0:02:37]} 14. Nf1 {[%clk 0:02:36]}  Qb6 {[%clk 0:02:31]} 15. Qc3 {[%clk 0:02:34]}  Rfc8 {[%clk 0:02:29]} 16. Bg5 {[%clk 0:02:32]}  Bf8 {[%clk 0:02:24]} 17. Rac1 {[%clk 0:02:31]}  Qa6 {[%clk 0:02:19]} 18. a3 {[%clk 0:02:18]}  Be4 {[%clk 0:02:08]} 19. Ng3 {[%clk 0:02:11]}  Rab8 {[%clk 0:01:41]} 20. b4 {[%clk 0:01:57]}  Bd3 {[%clk 0:01:33]} 21. Re3 {[%clk 0:01:54]}  Bb5 {[%clk 0:01:27]} 22. Nh4 {[%clk 0:01:52]}  c5 {[%clk 0:01:17]} 23. bxc5 {[%clk 0:01:41]}  Bc4 {[%clk 0:01:16]} 24. Nxh5 {[%clk 0:01:38]}  gxh5 {[%clk 0:01:09]} 25. Rg3 {[%clk 0:01:21]}  Ng6 {[%clk 0:01:08]} 26. Nxg6 {[%clk 0:01:07]}  fxg6 {[%clk 0:01:02]} 27. Qc2 {[%clk 0:01:07]}  Rc7 {[%clk 0:00:27]} 28. Bf6 {[%clk 0:01:01]}  Rbb7 {[%clk 0:00:17]} 29. Qxg6+ {[%clk 0:00:47]}  Rg7 {[%clk 0:00:17]} 30. Bxg7 {[%clk 0:00:36]}  Rxg7 {[%clk 0:00:18]} 31. Qxh5 {[%clk 0:00:26]}  Rxg3 {[%clk 0:00:16]} 32. fxg3 {[%clk 0:00:27]}  Qxa3 {[%clk 0:00:17]} 33. Qg6+ {[%clk 0:00:23]}  Kh8 {[%clk 0:00:17]} 34. Rb1 {[%clk 0:00:20]}  Qe3+ {[%clk 0:00:07]} 35. Kh2 {[%clk 0:00:20]}  Qxd4 {[%clk 0:00:02]} 36. Rb7 {[%clk 0:00:17]}  Bd3 {[%clk 0:00:01]} 37. Rh7# {[%clk 0:00:16]} 1-0


[Site "https://www.chess.com"]